bitfinex/quotes_SOLUSD_20250204
["timestamp","ask_amount","ask_price","bid_price","bid_amount"]
[1738683158110,1.0,212.72,212.7,37.46641241]
[1738683158311,1.96576702,212.69,212.64,37.46641241]
[1738683158514,1.88124658,212.77,212.41,37.46641241]
[1738683158515,0.96576702,212.65,212.62,37.46641241]
[1738683158723,0.96576702,212.65,212.64,37.46641241]
[1738683159143,0.96576702,212.68,212.66,20.0]
[1738683159311,0.96576702,212.68,212.67,20.0]
[1738683159511,0.96576702,212.68,212.67,57.46641241]
[1738683159716,0.96576702,212.72,212.67,57.46641241]
[1738683159943,0.96576702,212.68,212.66,20.0]
[1738683160148,3.9733,212.82,212.64,0.37647]
[1738683160149,0.96576702,212.73,212.67,20.37647]
[1738683160309,0.96576702,212.77,212.71,20.0]
[1738683160513,0.96576702,212.81,212.72,0.37647]
[1738683160744,0.96576702,212.83,212.77,0.37647]
[1738683160948,0.96576702,212.83,212.82,37.84288241]
[1738683161247,0.96576702,212.92,212.86,0.37647]
[1738683161416,0.96576702,212.94,212.9,37.84288241]
[1738683161620,1.0,212.94,212.9,37.84288241]
[1738683161813,0.96576702,212.96,212.9,37.96837241]
[1738683162648,0.96576702,212.89,212.74,37.46641241]
[1738683162949,1.96576702,212.89,212.88,37.46641241]
[1738683163138,0.96576702,212.89,212.88,37.46641241]
[1738683163443,1.02876702,212.91,212.88,37.46641241]
[1738683163682,1.02876702,212.91,212.85,37.46641241]
[1738683163683,1.02876702,212.91,212.9,37.46641241]
[1738683164039,0.063,212.91,212.9,37.84288241]
[1738683164364,0.063,212.91,212.9,37.46641241]
[1738683164761,1.02876702,212.91,212.9,37.46641241]
[1738683164939,0.96576702,212.86,212.85,37.46641241]
[1738683165137,1.96576702,212.86,212.85,37.46641241]
[1738683165332,1.96576702,212.84,212.83,37.46641241]
[1738683165551,0.96576702,212.76,212.75,37.46641241]
[1738683165744,1.0,212.78,212.75,37.46641241]
[1738683165745,0.96576702,212.77,212.75,37.46641241]
[1738683166265,1.0,212.76,212.75,37.46641241]
[1738683166575,1.96576702,212.74,212.73,37.46641241]
[1738683166879,0.96576702,212.76,212.73,37.46641241]
[1738683167038,0.96576702,212.76,212.75,37.46641241]
[1738683167456,1.96576702,212.72,212.71,37.46641241]
[1738683167655,1.96576702,212.72,212.7,7.2391812]
[1738683167875,1.96576702,212.72,212.71,37.46641241]
[1738683168049,0.96576702,212.78,212.74,20.0]
[1738683168253,1.96576702,212.81,212.77,37.46641241]
[1738683168445,2.9868,212.86,212.81,0.37647]
[1738683168446,0.96576702,212.85,212.81,0.37647]
[1738683168633,0.96576702,212.85,212.84,37.46641241]
[1738683169047,0.96576702,212.85,212.84,37.84288241]
[1738683169547,0.96576702,212.85,212.84,37.46641241]
[1738683169750,1.96576702,212.85,212.84,37.46641241]
[1738683170168,1.0,212.82,212.8,37.46641241]
[1738683170548,0.96576702,212.81,212.8,37.46641241]
[1738683170753,0.96576702,212.77,212.76,37.46641241]
[1738683170966,0.96576702,212.77,212.74,37.46641241]
[1738683170967,0.96576702,212.75,212.74,37.46641241]
[1738683171181,0.96576702,212.73,212.72,37.46641241]
[1738683171963,1.96576702,212.73,212.71,0.03]
[1738683172376,0.96576702,212.73,212.71,0.03]
[1738683172882,1.0,212.72,212.71,0.03]
[1738683173946,14.53733853,212.72,212.62,37.46641241]
[1738683174168,0.96576702,212.61,212.6,37.46641241]
[1738683174478,1.96576702,212.61,212.6,37.46641241]
[1738683174845,0.96576702,212.61,212.6,37.46641241]
[1738683175074,1.96576702,212.64,212.63,20.0]
[1738683175350,11.9081,212.78,212.59,37.46641241]
[1738683175351,0.96576702,212.6,212.59,37.46641241]
[1738683175560,1.0,212.56,212.55,44.70559361]
[1738683175776,1.0,212.56,212.54,0.03]
[1738683175777,1.96576702,212.56,212.54,0.03]
[1738683176478,13.41184853,212.55,212.54,0.03]
[1738683176680,1.96576702,212.56,212.54,0.03]
[1738683178386,0.12549,212.55,212.54,0.03]
[1738683178550,52.96951796,212.53,212.52,0.03]
[1738683178771,1.96576702,212.53,212.52,0.03]
[1738683180196,1.96576702,212.42,212.39,37.49641241]
[1738683180397,1.96576702,212.42,212.39,0.03]
[1738683180705,39.43217943,212.42,212.39,0.03]
[1738683181001,1.96576702,212.42,212.39,37.49641241]
[1738683181204,0.96576702,212.34,212.31,37.46641241]
[1738683181371,1.96576702,212.3,212.29,37.46641241]
[1738683181789,0.96576702,212.36,212.32,20.0]
[1738683181974,0.96576702,212.39,212.38,20.0]
[1738683182160,0.96576702,212.47,212.4,0.12549]
[1738683182368,1.96576702,212.47,212.46,37.46641241]
[1738683182802,0.96576702,212.47,212.46,37.46641241]
[1738683182997,0.96576702,212.52,212.49,20.0]
[1738683183222,0.96576702,212.56,212.54,20.0]
[1738683183399,1.0,212.67,212.51,74.93282482]
[1738683183400,0.96576702,212.58,212.57,20.0]
[1738683183623,0.96576702,212.6,212.59,20.0]
[1738683183817,0.96576702,212.6,212.59,57.46641241]
[1738683184031,0.96576702,212.63,212.59,57.46641241]
[1738683184340,1.96576702,212.61,212.59,20.0]
[1738683184544,0.96576702,212.64,212.63,20.0]
[1738683184714,0.96576702,212.64,212.63,37.46641241]
[1738683184916,1.96576702,212.62,212.61,37.46641241]
[1738683185116,1.96576702,212.66,212.61,37.46641241]
[1738683185320,1.0,212.67,212.65,37.46641241]
[1738683185636,1.96576702,212.67,212.66,57.46641241]
[1738683186344,1.0,212.63,212.62,37.46641241]
[1738683186533,1.96576702,212.63,212.62,37.46641241]
[1738683186730,0.96576702,212.65,212.64,20.0]
[1738683186954,0.96576702,212.65,212.64,57.46641241]
[1738683187248,1.063,212.76,212.68,0.12549]
[1738683187412,0.063,212.76,212.75,37.46641241]
[1738683187608,2.02876702,212.76,212.75,37.46641241]
[1738683187921,1.96576702,212.74,212.73,37.46641241]
[1738683188235,1.96576702,212.64,212.53,1.18382559]
[1738683188434,1.96576702,212.62,212.61,37.46641241]
[1738683188628,1.96576702,212.65,212.64,20.0]
[1738683188828,1.96576702,212.65,212.64,57.46641241]
[1738683189145,1.96576702,212.63,212.62,37.46641241]
[1738683189311,0.96576702,212.57,212.44,55.84]
[1738683189512,0.96576702,212.57,212.56,57.46641241]
[1738683189708,1.96576702,212.57,212.56,37.46641241]
[1738683189911,0.96576702,212.57,212.56,37.46641241]
[1738683190748,1.96576702,212.57,212.56,37.46641241]
[1738683190911,1.96576702,212.53,212.52,37.46641241]
[1738683191242,1.96576702,212.51,212.49,1.881995]
[1738683191418,1.96576702,212.51,212.5,57.46641241]
[1738683191622,1.96576702,212.51,212.5,37.46641241]
[1738683191948,1.96576702,212.49,212.48,37.46641241]
[1738683192235,0.96576702,212.49,212.48,37.46641241]
[1738683192423,1.0,212.51,212.48,37.46641241]
[1738683192424,0.96576702,212.51,212.5,20.0]
[1738683192729,0.96576702,212.51,212.5,37.46641241]
[1738683192934,1.0,212.65,212.5,74.93282482]
[1738683193142,1.14957828,212.71,212.7,1.0]
[1738683193446,1.0,212.85,212.81,1.0]
[1738683193762,1.0,212.89,212.88,1.0]
[1738683193919,1.0,212.89,212.88,38.46641241]
[1738683194737,0.063,212.98,212.9,1.0]
[1738683194941,0.063,212.98,212.9,38.46641241]
[1738683195648,0.063,212.98,212.97,1.0]
[1738683195941,0.063,212.98,212.96,37.46641241]
[1738683196140,0.063,212.98,212.97,1.0]
[1738683196736,2.5265,213.07,213.04,1.0]
[1738683196935,15.93834853,213.07,213.06,37.46641241]
[1738683197146,13.53733853,213.06,213.04,37.46641241]
[1738683197349,2.5265,213.07,213.04,37.46641241]
[1738683197521,2.5265,213.07,213.06,37.46641241]
[1738683198223,0.03,213.09,213.08,2.0]
[1738683198425,0.063,213.2,213.12,1.0]
[1738683198756,0.063,213.2,213.12,38.46641241]
[1738683200146,13.78831853,213.23,213.12,38.46641241]
[1738683200333,13.41184853,213.21,213.15,37.46641241]
[1738683200536,2.5301,213.24,213.19,38.46641241]
[1738683200756,37.46641241,213.33,213.23,1.0]
[1738683201047,38.34558803,213.33,213.23,37.46641241]
[1738683201235,37.46641241,213.31,213.23,37.46641241]
[1738683201438,38.34558803,213.33,213.25,37.46641241]
[1738683201640,15.45511746,213.34,213.27,37.46641241]
[1738683201834,14.5759,213.34,213.27,37.46641241]
[1738683202770,37.46641241,213.31,213.23,37.46641241]
[1738683202973,13.91380853,213.28,213.21,37.46641241]
[1738683203179,37.46641241,213.33,213.25,37.46641241]
[1738683203346,9.8885,213.34,213.29,37.46641241]
[1738683203741,14.5759,213.34,213.29,37.46641241]
[1738683203969,52.04231241,213.34,213.27,37.46641241]
[1738683204182,13.53733853,213.33,213.27,37.46641241]
[1738683204475,55.69145094,213.33,213.25,37.46641241]
[1738683204980,18.22503853,213.33,213.28,37.46641241]
[1738683205147,17.72503853,213.33,213.28,37.46641241]
[1738683205564,9.8885,213.34,213.31,37.46641241]
[1738683205847,2.5301,213.35,213.33,37.46641241]
[1738683206178,2.5301,213.35,213.31,37.46641241]
[1738683206357,5.06377,213.34,213.29,37.46641241]
[1738683206550,1.063,213.33,213.29,37.46641241]
[1738683206749,1.063,213.33,213.27,37.46641241]
[1738683206950,0.063,213.33,213.27,37.46641241]
[1738683207460,0.063,213.33,213.31,37.46641241]
[1738683207661,0.063,213.33,213.32,1.0]
[1738683208179,0.063,213.33,213.31,37.46641241]
[1738683208379,0.063,213.33,213.31,38.46641241]
[1738683210173,13.91380853,213.37,213.29,37.46641241]
[1738683210383,51.38022094,213.37,213.29,37.46641241]
[1738683210752,13.91380853,213.37,213.31,37.46641241]
[1738683210954,13.91380853,213.37,213.25,1.0]
[1738683210955,51.38022094,213.35,213.27,37.46641241]
[1738683211169,0.12549,213.31,213.25,37.46641241]
[1738683211377,13.41184853,213.32,213.29,37.46641241]
[1738683211576,4.6871,213.35,213.29,37.46641241]
[1738683211759,1.0,213.34,213.31,37.46641241]
[1738683211944,13.91380853,213.33,213.29,37.46641241]
[1738683212146,51.38022094,213.33,213.25,37.46641241]
[1738683212452,13.41184853,213.29,213.25,37.46641241]
[1738683212653,0.12549,213.26,213.21,56.22456441]
[1738683212848,13.41184853,213.27,213.17,37.46641241]
[1738683212849,13.53733853,213.22,213.17,37.46641241]
[1738683213068,13.53733853,213.22,213.13,37.46641241]
[1738683213069,0.12549,213.18,213.13,37.46641241]
[1738683213288,13.53733853,213.16,213.11,7.2391812]
[1738683213448,0.12549,213.14,213.11,7.2391812]
[1738683213867,0.87976352,213.18,213.11,44.70559361]
[1738683214068,30.0,213.34,213.11,44.70559361]
[1738683214069,47.73671241,213.23,213.15,37.46641241]
[1738683214250,10.2703,213.23,213.19,37.46641241]
[1738683214451,13.91380853,213.21,213.13,37.46641241]
[1738683214649,4.6899,213.22,213.15,38.46641241]
[1738683214850,10.2703,213.23,213.18,37.46641241]
[1738683215393,2.5708,213.26,213.22,37.46641241]
[1738683215580,2.5708,213.26,213.25,37.46641241]
[1738683215748,2.5708,213.26,213.23,37.46641241]
[1738683215953,0.87927748,213.31,213.19,1.0]
[1738683215954,37.46641241,213.29,213.2,37.46641241]
[1738683216174,37.46641241,213.29,213.22,1.0]
[1738683216368,38.34582118,213.31,213.22,38.46641241]
[1738683216565,37.46641241,213.29,213.22,37.46641241]
[1738683216765,0.12549,213.24,213.17,1.0]
[1738683216978,13.41184853,213.21,213.17,1.0]
[1738683217288,16.4087,213.3,213.2,38.46641241]
[1738683217494,13.91380853,213.28,213.22,38.46641241]
[1738683217786,0.12549,213.19,213.15,1.0]
[1738683217963,13.41184853,213.17,213.13,1.0]
[1738683218158,13.41184853,213.17,213.12,37.46641241]
[1738683218356,5.19326,213.16,213.12,37.46641241]
[1738683218584,13.41184853,213.15,213.1,37.46641241]
[1738683218894,37.46641241,213.19,213.12,37.46641241]
[1738683219070,13.53733853,213.15,213.11,1.0]
[1738683219468,4.6903,213.21,213.14,37.46641241]
[1738683219665,37.46641241,213.19,213.1,37.46641241]
[1738683219877,13.91380853,213.18,213.1,37.46641241]
[1738683220282,37.46641241,213.15,213.08,37.46641241]
[1738683220492,13.91380853,213.16,213.08,37.46641241]
[1738683220493,0.12549,213.12,213.08,37.46641241]
[1738683220694,42.15681241,213.2,213.11,1.0]
[1738683220896,7.052,213.24,213.18,38.46641241]
[1738683221114,2.3623,213.24,213.2,37.46641241]
[1738683221276,12.60093793,213.29,213.22,37.46641241]
[1738683221277,0.87953793,213.29,213.22,37.46641241]
[1738683221703,4.6883,213.3,213.24,37.46641241]
[1738683221901,10.1504,213.32,213.28,37.46641241]
[1738683222213,0.063,213.33,213.31,2.0]
[1738683222371,0.063,213.33,213.32,37.46641241]
[1738683223403,0.063,213.33,213.31,1.0]
[1738683224197,0.063,213.33,213.32,38.46641241]
[1738683225406,0.063,213.33,213.32,39.16933518]
[1738683225773,0.063,213.33,213.32,38.46641241]
[1738683225987,0.063,213.33,213.32,52.38022094]
[1738683225988,0.0001,213.33,213.32,52.38022094]
[1738683226204,4.7467,213.51,213.44,2.0]
[1738683226407,0.063,213.51,213.48,38.46641241]
[1738683226910,0.12549,213.48,213.43,1.0]
[1738683227090,13.41184853,213.49,213.45,1.0]
[1738683227279,0.063,213.51,213.48,37.46641241]
[1738683227472,0.063,213.51,213.49,1.0]
[1738683227694,0.063,213.51,213.48,37.46641241]
[1738683228175,0.12549,213.47,213.4,37.46641241]
[1738683228388,0.12549,213.42,213.36,37.46641241]
[1738683228595,13.41184853,213.4,213.34,37.46641241]
[1738683228815,13.41184853,213.4,213.36,37.46641241]
[1738683229176,38.34522422,213.46,213.36,37.46641241]
[1738683229377,4.6847,213.46,213.4,38.46641241]
[1738683229905,4.6838,213.5,213.44,38.46641241]
[1738683230112,4.6838,213.5,213.45,37.46641241]
[1738683230418,13.91380853,213.49,213.41,37.46641241]
[1738683230630,13.91380853,213.47,213.41,37.46641241]
[1738683230788,0.12549,213.45,213.41,37.46641241]
[1738683230991,4.6847,213.46,213.41,38.46641241]
[1738683231206,4.6847,213.46,213.41,37.46641241]
[1738683231395,0.12549,213.45,213.41,37.46641241]
[1738683231600,14.79242854,213.45,213.37,38.46641241]
[1738683231807,0.12549,213.41,213.36,38.46641241]
[1738683232128,4.6842,213.48,213.43,1.0]
[1738683232292,1.14360223,213.49,213.46,37.46641241]
[1738683232619,0.063,213.51,213.44,38.46641241]
[1738683232799,13.91380853,213.49,213.42,38.46641241]
[1738683233003,0.87850712,213.48,213.42,37.46641241]
[1738683233186,0.063,213.51,213.44,38.46641241]
[1738683233392,0.063,213.51,213.33,0.03]
[1738683233393,0.063,213.51,213.48,38.46641241]
[1738683233610,0.063,213.51,213.5,38.46641241]
[1738683234224,0.50196,213.5,213.42,37.46641241]
[1738683234525,0.063,213.51,213.44,37.46641241]
[1738683234526,13.41184853,213.49,213.44,37.46641241]
[1738683234708,4.6844,213.47,213.42,38.46641241]
[1738683235115,0.50196,213.5,213.44,37.46641241]
[1738683235316,4.6841,213.49,213.44,37.46641241]
[1738683235525,13.41184853,213.47,213.42,37.46641241]
[1738683235840,4.7468,213.51,213.47,1.0]
[1738683236123,13.41184853,213.49,213.44,38.46641241]
[1738683236327,13.41184853,213.49,213.45,1.0]
[1738683236636,13.91380853,213.5,213.44,37.46641241]
[1738683236808,4.684,213.49,213.44,38.46641241]
[1738683237007,4.684,213.49,213.44,37.46641241]
[1738683237330,0.12549,213.48,213.44,37.46641241]
[1738683237631,4.50949,213.49,213.44,1.0]
[1738683237821,0.37647,213.48,213.42,37.46641241]
[1738683238027,0.37647,213.48,213.41,1.0]
[1738683238336,13.41184853,213.44,213.4,1.0]
[1738683238512,37.84288241,213.48,213.41,1.0]
[1738683238700,37.84288241,213.48,213.4,38.46641241]
[1738683238701,4.50949,213.49,213.43,1.0]
[1738683238906,0.94162551,213.51,213.46,37.46641241]
[1738683238907,4.7466,213.51,213.46,37.46641241]
[1738683239216,13.78831853,213.5,213.42,39.46641241]
[1738683239409,0.12549,213.49,213.44,1.0]
[1738683239925,13.41184853,213.5,213.43,1.0]
[1738683240232,13.91380853,213.47,213.4,1.0]
[1738683240535,38.34507278,213.5,213.42,38.46641241]
[1738683240706,13.91380853,213.5,213.44,1.0]
[1738683241029,4.684,213.49,213.42,38.46641241]
[1738683241217,13.91380853,213.48,213.42,1.0]
[1738683241534,14.79239287,213.48,213.4,38.46641241]
[1738683241830,37.46641241,213.42,213.36,1.0]
[1738683242026,13.41184853,213.38,213.36,2.0]
[1738683242236,37.84288241,213.41,213.36,2.0]
[1738683242521,37.84288241,213.41,213.36,1.0]
[1738683242522,13.53733853,213.4,213.36,1.0]
[1738683242921,18.22373853,213.38,213.33,0.03]
[1738683243123,0.25098,213.35,213.33,0.03]
[1738683243305,0.25098,213.35,213.24,1.0]
[1738683243306,0.37647,213.33,213.24,1.0]
[1738683243503,0.37647,213.33,213.2,1.0]
[1738683243504,51.00375094,213.25,213.2,1.0]
[1738683243904,51.00375094,213.25,213.13,1.0]
[1738683243905,0.50196,213.19,213.13,1.0]
[1738683244140,0.50196,213.15,213.12,18.62109352]
[1738683244307,13.91380853,213.13,213.12,18.62109352]
[1738683244640,0.12549,213.1,213.07,7.2391812]
[1738683244807,37.46641241,213.08,213.07,7.2391812]
[1738683245007,24.45443837,213.06,213.05,6.241e-05]
[1738683245225,0.12549,213.01,212.98,7.18185227]
[1738683245424,13.53733853,213.01,212.98,7.18185227]
[1738683245626,4.6926,213.1,213.04,1.0]
[1738683245825,4.6926,213.1,213.03,38.46641241]
[1738683246032,37.46641241,213.08,212.99,37.46641241]
[1738683246362,37.46641241,213.14,213.07,1.0]
[1738683246859,6.7256,213.19,213.13,1.0]
[1738683247019,38.33292903,213.14,213.11,23.1762496]
[1738683247217,38.33292903,213.14,213.13,38.46641241]
[1738683247832,22.36372041,213.18,213.13,38.46641241]
[1738683248032,22.36372041,213.18,213.15,37.46641241]
[1738683248248,22.36372041,213.18,213.17,38.46641241]
[1738683248562,22.36372041,213.18,213.07,38.46641241]
[1738683248563,35.77556894,213.18,213.16,1.0]
[1738683248920,9.5844516,213.17,213.11,20.0]
[1738683249231,9.5844516,213.17,213.07,12.29778028]
[1738683249232,12.77926881,213.25,213.19,20.0]
[1738683249434,12.77926881,213.25,213.24,37.46641241]
[1738683249937,0.12549,213.34,213.24,37.46641241]
[1738683250153,0.12549,213.34,213.3,37.46641241]
[1738683250560,26.19111734,213.35,213.32,37.46641241]
[1738683250874,0.12549,213.34,213.32,37.46641241]
[1738683251052,0.50196,213.34,213.3,37.46641241]
[1738683251258,0.12549,213.34,213.3,37.46641241]
[1738683251647,12.77926881,213.35,213.32,37.46641241]
[1738683251847,13.41184853,213.34,213.32,37.46641241]
[1738683252075,12.77926881,213.35,213.3,37.46641241]
[1738683252249,17.46646881,213.35,213.28,37.46641241]
[1738683252444,52.25932166,213.34,213.26,37.46641241]
[1738683252645,13.41184853,213.34,213.28,37.46641241]
[1738683252864,2.0033,213.43,213.32,37.46641241]
[1738683253176,13.91380853,213.41,213.33,37.46641241]
[1738683253559,0.12549,213.33,213.26,37.46641241]
[1738683253761,0.12549,213.33,213.24,37.46641241]
[1738683253964,37.46641241,213.31,213.22,37.46641241]
[1738683254165,0.12549,213.3,213.24,37.46641241]
[1738683254351,37.46641241,213.33,213.24,37.46641241]
[1738683254554,37.46641241,213.39,213.29,37.46641241]
[1738683254863,37.46641241,213.41,213.31,37.46641241]
[1738683255064,13.41184853,213.37,213.31,37.46641241]
[1738683255254,13.41184853,213.37,213.22,0.50196]
[1738683255255,13.41184853,213.37,213.33,37.46641241]
[1738683255456,4.6852,213.44,213.35,37.46641241]
[1738683255674,43.78941241,213.51,213.39,37.46641241]
[1738683255675,37.46641241,213.49,213.39,37.46641241]
[1738683255976,37.46641241,213.49,213.41,37.46641241]
[1738683256175,13.91380853,213.47,213.39,37.46641241]
[1738683256355,51.38022094,213.47,213.37,37.46641241]
[1738683256559,42.15041241,213.49,213.41,37.46641241]
[1738683256779,13.91380853,213.39,213.31,37.46641241]
[1738683256982,13.91380853,213.31,213.23,37.46641241]
[1738683257276,37.46641241,213.3,213.22,0.03]
[1738683257480,13.91380853,213.27,213.22,0.03]
[1738683257788,13.41184853,213.24,213.22,0.03]
[1738683257952,37.46641241,213.28,213.22,0.03]
[1738683258154,0.12549,213.27,213.22,0.03]
[1738683258360,37.46641241,213.26,213.22,0.03]
[1738683258568,13.91380853,213.23,213.22,0.03]
[1738683258962,4.6897,213.23,213.22,0.03]
[1738683259482,4.6877,213.33,213.22,0.03]
[1738683259666,5.56683462,213.33,213.24,37.46641241]
[1738683259860,13.91380853,213.32,213.24,37.46641241]
[1738683260056,0.50196,213.29,213.22,37.49641241]
[1738683260271,37.46641241,213.3,213.22,37.49641241]
[1738683260670,13.41184853,213.31,213.24,37.46641241]
[1738683260980,13.41184853,213.32,213.26,37.46641241]
[1738683261155,13.41184853,213.32,213.28,37.46641241]
[1738683261354,37.46641241,213.38,213.22,0.03]
[1738683261355,37.46641241,213.4,213.3,37.46641241]
[1738683261565,37.46641241,213.45,213.36,37.46641241]
[1738683261769,0.12549,213.44,213.36,37.46641241]
[1738683261963,13.91380853,213.42,213.34,37.46641241]
[1738683262163,37.46641241,213.43,213.29,37.46641241]
[1738683262164,37.46641241,213.45,213.36,37.46641241]
[1738683262581,4.6847,213.46,213.38,37.46641241]
[1738683262783,13.91380853,213.45,213.38,37.46641241]
[1738683263094,38.34519128,213.47,213.38,37.46641241]
[1738683263095,42.15091241,213.47,213.38,37.46641241]
[1738683263292,13.91380853,213.46,213.36,37.46641241]
[1738683263494,37.46641241,213.43,213.34,37.46641241]
[1738683263665,0.50196,213.4,213.32,37.46641241]
[1738683263982,13.41184853,213.39,213.32,37.46641241]
[1738683264352,37.46641241,213.43,213.34,37.46641241]
[1738683264575,4.6845,213.47,213.36,37.46641241]
[1738683264576,37.46641241,213.45,213.36,37.46641241]
[1738683264781,37.46641241,213.41,213.32,37.46641241]
[1738683264987,13.41184853,213.38,213.3,37.46641241]
[1738683265197,13.41184853,213.36,213.28,37.46641241]
[1738683265753,4.6863,213.39,213.32,37.46641241]
[1738683265961,13.91380853,213.38,213.3,37.46641241]
[1738683266175,14.79286127,213.38,213.3,37.46641241]
[1738683266386,14.7928703,213.38,213.3,37.46641241]
[1738683266591,13.91380853,213.38,213.3,37.46641241]
[1738683266800,13.41184853,213.38,213.25,4.6892]
[1738683266961,37.46641241,213.45,213.36,37.46641241]
[1738683267163,4.6851,213.45,213.38,37.46641241]
[1738683267698,13.41184853,213.44,213.38,37.46641241]
[1738683267884,42.15101241,213.47,213.38,37.46641241]
[1738683268062,13.91380853,213.46,213.38,37.46641241]
[1738683268757,13.91380853,213.44,213.38,37.46641241]
[1738683268964,0.50196,213.41,213.34,37.46641241]
[1738683269157,13.41184853,213.35,213.28,37.46641241]
[1738683269564,13.41184853,213.36,213.3,37.46641241]
[1738683269999,13.91380853,213.34,213.26,37.46641241]
[1738683270204,13.91380853,213.32,213.24,37.46641241]
[1738683270504,13.91380853,213.32,213.26,37.46641241]
[1738683270973,18.60170853,213.32,213.24,37.46641241]
[1738683271608,13.91380853,213.28,213.22,0.03]
[1738683271776,0.50196,213.24,213.22,0.03]
[1738683272107,52.25979274,213.23,213.22,0.03]
[1738683272405,13.91380853,213.23,213.22,0.03]
[1738683272590,37.46641241,213.27,213.22,0.03]
[1738683272797,20.50196,213.19,213.12,37.46641241]
[1738683272993,37.46641241,213.18,213.08,37.46641241]
[1738683273199,37.46641241,213.22,213.12,37.46641241]
[1738683273509,0.50196,213.17,213.12,37.46641241]
[1738683273693,0.50196,213.17,213.05,4.6935]
[1738683273694,13.41184853,213.12,213.05,37.46641241]
[1738683273870,13.41184853,213.1,213.03,43.51979935]
[1738683274070,13.41184853,213.1,213.04,37.46641241]
[1738683274273,51.38022094,213.11,213.03,43.51979935]
[1738683274503,0.8801589,213.1,213.03,43.51979935]
[1738683274799,13.41184853,213.08,213.02,37.46641241]
[1738683274997,0.88017427,213.15,213.04,37.46641241]
[1738683274998,4.6923,213.12,213.04,37.46641241]
[1738683275316,13.91380853,213.11,213.04,37.46641241]
[1738683275512,46.29601241,213.18,213.1,37.46641241]
[1738683275801,8.8296,213.18,213.12,37.46641241]
[1738683276008,37.46641241,213.24,213.16,37.46641241]
[1738683276500,13.66282853,213.18,213.12,37.46641241]
[1738683276707,13.66282853,213.18,213.14,37.46641241]
[1738683276708,13.41184853,213.18,213.14,37.46641241]
[1738683277011,44.29481241,213.29,213.17,4.691]
[1738683277173,82.9,213.37,213.24,37.46641241]
[1738683277174,37.46641241,213.31,213.24,37.46641241]
[1738683277372,50.99071241,213.35,213.26,37.46641241]
[1738683277573,3.26893032,213.39,213.32,37.46641241]
[1738683277574,6.776,213.39,213.32,37.46641241]
[1738683277773,2.0897,213.39,213.32,37.46641241]
[1738683277969,42.15231241,213.41,213.32,37.46641241]
[1738683278271,50.50361241,213.43,213.34,37.46641241]
[1738683278513,9.23046835,213.43,213.36,37.46641241]
[1738683278676,8.3517,213.43,213.36,37.46641241]
[1738683278997,13.91380853,213.42,213.36,37.46641241]
[1738683279204,37.46641241,213.47,213.38,37.46641241]
[1738683279590,13.91380853,213.46,213.38,37.46641241]
[1738683280195,13.41184853,213.42,213.36,37.46641241]
[1738683281215,37.96837241,213.39,213.3,37.46641241]
[1738683281515,37.46641241,213.39,213.3,37.46641241]
[1738683281689,42.15191241,213.43,213.34,37.46641241]
[1738683282010,4.6855,213.43,213.36,37.46641241]
[1738683282212,42.15141241,213.45,213.36,37.46641241]
[1738683282715,42.15101241,213.47,213.38,37.46641241]
[1738683283215,13.91380853,213.46,213.38,37.46641241]
[1738683283413,13.41184853,213.46,213.4,37.46641241]
[1738683283725,0.50196,213.45,213.4,37.46641241]
[1738683284008,13.41184853,213.42,213.34,37.46641241]
[1738683284188,0.50196,213.41,213.34,37.46641241]
[1738683284388,13.41184853,213.38,213.32,37.46641241]
[1738683284907,0.50196,213.35,213.28,37.46641241]
[1738683285095,13.41184853,213.34,213.28,37.46641241]
[1738683285408,13.41184853,213.32,213.28,37.46641241]
[1738683285603,13.41184853,213.32,213.26,37.46641241]
[1738683285915,0.50196,213.31,213.24,37.46641241]
[1738683286399,0.50196,213.32,213.26,37.46641241]
[1738683286804,38.34560222,213.42,213.31,37.46641241]
[1738683286996,4.6853,213.43,213.35,37.46641241]
[1738683287382,37.46641241,213.42,213.33,37.46641241]
[1738683287617,13.91380853,213.39,213.31,37.46641241]
[1738683287792,13.91380853,213.39,213.26,4.6891]
[1738683287793,0.50196,213.35,213.29,37.46641241]
[1738683287985,37.46641241,213.4,213.31,37.46641241]
[1738683288187,4.6849,213.45,213.39,37.46641241]
[1738683288516,2.2373,213.48,213.29,37.46641241]
[1738683288517,4.6845,213.47,213.41,37.46641241]
[1738683288684,13.91380853,213.46,213.41,37.46641241]
[1738683289117,13.91380853,213.46,213.39,37.46641241]
[1738683289293,4.6849,213.45,213.37,37.46641241]